[Event "Serbian League Women 2024"]
[Site "Bajina Basta"]
[Date "2024.10.01"]
[Round "5.21"]
[White "Badelka, Olga"]
[Black "Muetsch, Annmarie"]
[Result "1-0"]
[ECO "E90"]
[WhiteElo "2430"]
[BlackElo "2290"]
[Annotator "TA"]
[PlyCount "63"]
[EventDate "2024.09.26"]
[EventType "team-tourn"]
[EventCountry "SRB"]
[SourceTitle "playchess.com"]
[Source "ChessBase"]
[SourceQuality "1"]
[TimeControl "40/5400+30:1800+30"]

{[%evp 16,63,66,61,116,115,116,122,136,128,139,133,262,262,266,254,256,278,252,258,253,240,358,111,204,110,105,98,140,201,206,209,203,96,99,89,90,100,167,156,136,139,269,271,256,107,361,304,580,580]} 1. d4 {[%emt 0:00:03]} Nf6 {[%emt 0:00:15]} 2. c4 {[%emt 0:00:09]} g6 {[%emt 0:00:09]} 3. Nc3 {[%emt 0:00:10]} Bg7 {[%emt 0:00:07]} 4. e4 {[%emt 0:00:06]} d6 {[%emt 0:00:05]} 5. Nf3 {[%emt 0:00:08]} O-O {[%emt 0:00:15]} 6. h3 {[%emt 0:00:22]} c5 {[%emt 0:01:33]} 7. d5 {[%emt 0:00:07]} b5 {[%emt 0:01:08]} 8. cxb5 {[%emt 0:00:07]} a6 {[%emt 0:00:08]} 9. a4 {[%emt 0:02:53]} Qa5 {[%emt 0:00:24]} (9... e6 $14) 10. Bd2 $16 {[%emt 0:01:04]} axb5 {[%emt 0:01:02]} 11. Bxb5 {[%emt 0:01:25]} Bd7 {[%emt 0:02:29] White is better.} 12. O-O {[%emt 0:01:18]} Qb6 {[%emt 0:13:03]} 13. Re1 {[%emt 0:10:47]} Na6 {[%emt 0:02:46] [#]} (13... Bxb5 $16 {was called for.} 14. Nxb5 Na6) 14. e5 $1 $18 {[%emt 0:05:51]} dxe5 {[%emt 0:00:40]} 15. Nxe5 {[%emt 0:00:04]} Bxb5 {[%emt 0:10:14]} 16. axb5 {[%emt 0:00:09]} Nb4 {[%emt 0:15:42]} 17. Rxa8 {[%emt 0:00:07]} Rxa8 {[%emt 0:00:05]} 18. Qb3 {[%emt 0:00:25][%cal Od5d6] d6! is the strong threat.} Qb7 {[%emt 0:14:30]} (18... Qd6 {might work better.} 19. Nc4 Qd8) 19. Nc6 $2 {[%emt 0:07:32]} (19. Nxf7 $18 {and White stays clearly on top.} Nbxd5 20. Nh6+ Bxh6 21. Bxh6) 19... e6 $16 {[%emt 0:02:12][%cal Rf6d5]} 20. Nxb4 {[%emt 0:16:16]} (20. dxe6 Nxc6 21. exf7+ Qxf7 22. Qxf7+ Kxf7 $18) 20... cxb4 {[%emt 0:01:35]} 21. Qxb4 {[%emt 0:00:04]} Nxd5 {[%emt 0:00:19]} 22. Nxd5 {[%emt 0:00:11]} Qxd5 {[%emt 0:00:41]} 23. b6 {[%emt 0:02:08] aiming for b7.} Bf8 {[%emt 0:17:27]} 24. Qf4 {[%emt 0:00:23]} (24. Qc3 $18) 24... Bd6 {[%emt 0:02:20]} 25. Qf3 {[%emt 0:04:43]} Qxf3 {[%emt 0:02:04]} 26. gxf3 {[%emt 0:00:04][%mdl 4096] Endgame. KRB-KRB} Rb8 {[%emt 0:02:25]} (26... Kf8 $16) 27. Be3 $18 {[%emt 0:00:38]} Kf8 {[%emt 0:03:18]} 28. Ra1 {[%emt 0:04:21]} f5 {[%emt 0:01:24] [#]} (28... Be7 $16 29. b4 Bd8) 29. b4 $1 {[%emt 0:04:15][%mdl 512]} Bxb4 {[%emt 0:01:10] [#]} 30. Ra7 {[%emt 0:11:01]} (30. Rb1 $1 $18 {[%cal Rb1b4] and the rest is easy.} Bd6 31. b7) 30... Bd6 {[%emt 0:00:17][%mdl 8192]} (30... e5 $16) 31. Rxh7 {[%emt 0:01:25]} f4 $2 {[%emt 0:02:25] [#]} (31... Kg8 32. Rd7 f4) 32. Bc5 $1 {[%emt 0:00:09][%mdl 512] Weighted Error Value: White=0.30/Black=0.53.  Loses game:     	---       	Black=1      Missed win:     	White=1     	---        Mistake:       	White=2     	Black=5      OK:         	White=8     	Black=10     Best:        	White=4     	Black=2      Strong:       	White=1     	---} 1-0

[Event "Serbian League Women 2024"]
[Site "Bajina Basta"]
[Date "2024.10.01"]
[Round "5.22"]
[White "Brunello, Marina"]
[Black "Zimina, Olga"]
[Result "1/2-1/2"]
[ECO "B36"]
[WhiteElo "2348"]
[BlackElo "2302"]
[Annotator "RC"]
[PlyCount "161"]
[EventDate "2024.09.26"]
[EventType "team-tourn"]
[EventCountry "SRB"]
[SourceTitle "playchess.com"]
[Source "ChessBase"]
[SourceQuality "1"]
[TimeControl "40/5400+30:1800+30"]

1. e4 {[%emt 0:00:06]} c5 {[%emt 0:00:18]} 2. Nf3 {[%emt 0:00:35]} Nc6 {[%emt 0:00:05]} 3. d4 {[%emt 0:00:20]} cxd4 {[%emt 0:00:05]} 4. Nxd4 {[%emt 0:00:03]} g6 {[%emt 0:00:06]} 5. c4 {[%emt 0:00:07]} Nf6 {[%emt 0:00:06]} 6. Nc3 {[%emt 0:00:05]} d6 {[%emt 0:00:05]} 7. Be2 {[%emt 0:01:36]} Nxd4 {[%emt 0:00:44]} 8. Qxd4 {[%emt 0:00:06]} Bg7 {[%emt 0:00:03]} 9. Bg5 {[%emt 0:00:50]} O-O {[%emt 0:00:08]} 10. Qd2 {[%emt 0:00:01]} a5 {[%emt 0:00:07]} 11. O-O {[%emt 0:02:52]} a4 {[%emt 0:00:06]} 12. Rab1 {[%emt 0:08:58]} Qa5 {[%emt 0:00:43]} 13. Qe3 {[%emt 0:05:15]} Be6 {[%emt 0:06:30]} 14. h4 {[%emt 0:08:03]} Rfc8 {[%emt 0:02:20]} 15. Nd5 {[%emt 0:00:09]} Bxd5 {[%emt 0:00:30]} 16. cxd5 {[%emt 0:00:39]} Qc5 {[%emt 0:00:51]} 17. Qd3 {[%emt 1:09:15]} Qb4 {[%emt 0:20:24]} 18. Bf3 {[%emt 0:00:00]} Rc7 {[%emt 0:18:55]} 19. Qe2 {[%emt 0:00:00]} Rac8 {[%emt 0:07:54]} 20. Rfc1 {[%emt 0:00:00]} Rxc1+ {[%emt 0:08:26]} 21. Rxc1 {[%emt 0:00:00]} Rxc1+ {[%emt 0:00:09]} 22. Bxc1 {[%emt 0:00:00]} Nd7 {[%emt 0:00:17]} 23. Qc2 {[%emt 0:00:00]} Nc5 {[%emt 0:01:52]} 24. g3 {[%emt 0:00:00]} h5 {[%emt 0:03:46]} 25. Kg2 {[%emt 0:00:00]} Kf8 {[%emt 0:03:55]} 26. Kf1 {[%emt 0:00:00]} Bf6 {[%emt 0:03:02]} 27. Bh6+ {[%emt 0:00:00]} Kg8 {[%emt 0:00:14]} 28. Bc1 {[%emt 0:00:00]} Qd4 {[%emt 0:01:59]} 29. Be3 {[%emt 0:00:00]} Qxb2 {[%emt 0:01:29]} 30. Qxb2 {[%emt 0:00:00]} Bxb2 {[%emt 0:00:04]} 31. Bxc5 {[%emt 0:00:00]} dxc5 {[%emt 0:00:05]} 32. Be2 {[%emt 0:00:00]} Kf8 {[%emt 0:05:54]} 33. Bb5 {[%emt 0:00:00]} a3 {[%emt 0:00:06]} 34. Ke2 {[%emt 0:00:00]} e6 {[%emt 0:01:09]} 35. d6 {[%emt 0:00:00]} Be5 {[%emt 0:00:07]} 36. d7 {[%emt 0:00:00]} Ke7 {[%emt 0:00:08]} 37. Kd3 {[%emt 0:00:14]} Bd4 {[%emt 0:00:18]} 38. Ke2 {[%emt 0:00:05]} Kd8 {[%emt 0:00:31]} 39. f4 {[%emt 0:01:38]} Kc7 {[%emt 0:03:02]} 40. e5 {[%emt 0:01:39]} Bc3 {[%emt 0:01:52]} 41. Kf3 {[%emt 0:35:30]} Be1 {[%emt 0:30:27]} 42. Kg2 {[%emt 0:00:07]} Kd8 {[%emt 0:02:14]} 43. Kf3 {[%emt 0:00:22]} Ke7 {[%emt 0:00:08]} 44. Kg2 {[%emt 0:00:12]} Ba5 {[%emt 0:08:02]} 45. Kf3 {[%emt 0:00:08]} f6 {[%emt 0:01:20]} 46. exf6+ {[%emt 0:00:41]} Kxf6 {[%emt 0:00:08]} 47. Ke4 {[%emt 0:00:02]} Ke7 {[%emt 0:01:04]} 48. Ke3 {[%emt 0:00:56]} Be1 {[%emt 0:00:00]} 49. Kf3 {[%emt 0:00:00]} Ba5 {[%emt 0:00:00]} 50. Ke3 {[%emt 0:00:00]} Kf6 {[%emt 0:00:00]} 51. Ke4 {[%emt 0:00:00]} Bc7 {[%emt 0:00:00]} 52. Bc4 {[%emt 0:00:00]} Ke7 {[%emt 0:00:00]} 53. Bb5 {[%emt 0:00:00]} Kd6 {[%emt 0:00:00]} 54. Kd3 {[%emt 0:00:00]} e5 {[%emt 0:00:00]} 55. fxe5+ {[%emt 0:00:00]} Kxe5 {[%emt 0:00:00]} 56. Ke3 {[%emt 0:00:00]} Bd8 {[%emt 0:00:00]} 57. Bc4 {[%emt 0:00:00]} g5 {[%emt 0:00:00]} 58. hxg5 {[%emt 0:00:00]} Bxg5+ {[%emt 0:00:00]} 59. Kd3 {[%emt 0:00:00]} Kd6 {[%emt 0:00:00]} 60. Bf7 {[%emt 0:00:00]} b5 {[%emt 0:00:00]} 61. Bxh5 {[%emt 0:00:00]} Kxd7 {[%emt 0:00:00]} 62. Kc2 {[%emt 0:00:00]} c4 {[%emt 0:00:00]} 63. Bf7 {[%emt 0:00:00]} Kd6 {[%emt 0:00:00]} 64. Be8 {[%emt 0:00:00]} Kc5 {[%emt 0:00:00]} 65. Bf7 {[%emt 0:00:00]} b4 {[%emt 0:00:00]} 66. Bg6 {[%emt 0:00:00]} Bf6 {[%emt 0:00:00]} 67. Bf5 {[%emt 0:00:00]} b3+ {[%emt 0:00:00]} 68. Kb1 {[%emt 0:00:00]} Kd4 {[%emt 0:00:00]} 69. Bg6 {[%emt 0:00:00]} Kc3 {[%emt 0:00:00]} 70. Bf5 {[%emt 0:00:00]} Bg5 {[%emt 0:01:36]} 71. Bg6 {[%emt 0:00:00]} Bc1 {[%emt 0:05:45]} 72. Bf5 {[%emt 0:00:00]} Bb2 {[%emt 0:04:05]} 73. Bg6 {[%emt 0:00:00]} Kd2 {[%emt 0:00:17]} 74. Bf5 {[%emt 0:00:00]} Be5 {[%emt 0:00:48]} 75. Bg6 {[%emt 0:00:00]} Bxg3 {[%emt 0:00:11]} 76. Bf5 {[%emt 0:00:00]} Bd6 {[%emt 0:00:51]} 77. Bg6 {[%emt 0:18:26]} bxa2+ {[%emt 0:01:59]} 78. Kxa2 {[%emt 0:00:00]} Kc1 {[%emt 0:00:04]} 79. Bf5 {[%emt 0:00:00]} c3 {[%emt 0:01:07]} 80. Kb3 {[%emt 0:00:00]} Kd2 {[%emt 0:00:42]} 81. Bg6 {[%emt 0:00:00]} 1/2-1/2

[Event "Serbian League Women 2024"]
[Site "Bajina Basta"]
[Date "2024.10.01"]
[Round "5.23"]
[White "Vujovic, Vera"]
[Black "Mehmed, Elif"]
[Result "0-1"]
[ECO "B60"]
[WhiteElo "2175"]
[BlackElo "2228"]
[Annotator "RC"]
[PlyCount "106"]
[EventDate "2024.09.26"]
[EventType "team-tourn"]
[EventCountry "SRB"]
[SourceTitle "playchess.com"]
[Source "ChessBase"]
[SourceQuality "1"]
[TimeControl "40/5400+30:1800+30"]

1. e4 {[%emt 0:00:01]} c5 {[%emt 0:00:08]} 2. Nf3 {[%emt 0:00:04]} d6 {[%emt 0:00:04]} 3. d4 {[%emt 0:00:04]} cxd4 {[%emt 0:00:04]} 4. Nxd4 {[%emt 0:00:05]} Nf6 {[%emt 0:00:05]} 5. Nc3 {[%emt 0:00:05]} Nc6 {[%emt 0:00:04]} 6. Bg5 {[%emt 0:00:28]} Bd7 {[%emt 0:00:05]} 7. Nb3 {[%emt 0:06:00]} a6 {[%emt 0:05:51]} 8. Bd3 {[%emt 0:05:56]} e6 {[%emt 0:01:30]} 9. Qd2 {[%emt 0:03:02]} Be7 {[%emt 0:00:34]} 10. O-O-O {[%emt 0:05:59]} b5 {[%emt 0:01:38]} 11. f3 {[%emt 0:01:40]} b4 {[%emt 0:04:28]} 12. Bxf6 {[%emt 0:13:27]} Bxf6 {[%emt 0:00:11]} 13. Ne2 {[%emt 0:00:11]} Qb6 {[%emt 0:12:18]} 14. Kb1 {[%emt 0:14:48]} a5 {[%emt 0:02:10]} 15. f4 {[%emt 0:08:15]} a4 {[%emt 0:20:02]} 16. Nbc1 {[%emt 0:08:51]} Na5 {[%emt 0:13:31]} 17. h4 {[%emt 0:11:46]} Rc8 {[%emt 0:01:13]} 18. Rh3 {[%emt 0:02:52]} h5 {[%emt 0:06:55]} 19. Qe3 {[%emt 0:11:45]} Rc5 {[%emt 0:02:40]} 20. Rf1 {[%emt 0:01:43]} Qc7 {[%emt 0:02:35]} 21. Ng1 {[%emt 0:03:14]} Nc4 {[%emt 0:05:53]} 22. Bxc4 {[%emt 0:00:12]} Rxc4 {[%emt 0:00:03]} 23. Qe2 {[%emt 0:00:40]} O-O {[%emt 0:03:49]} 24. Nf3 {[%emt 0:00:49]} Rc8 {[%emt 0:01:22]} 25. Ne1 {[%emt 0:00:06]} Bb5 {[%emt 0:01:04]} 26. Rf2 {[%emt 0:00:51]} Bd4 {[%emt 0:06:28]} 27. Rff3 {[%emt 0:00:07]} Qb6 {[%emt 0:01:45]} 28. Qd1 {[%emt 0:00:50]} a3 {[%emt 0:01:10]} 29. b3 {[%emt 0:00:15]} R4c7 {[%emt 0:00:46]} 30. Ne2 {[%emt 0:00:52]} Bf2 {[%emt 0:01:55]} 31. c4 {[%emt 0:00:28]} bxc3 {[%emt 0:00:29]} 32. Nxc3 {[%emt 0:00:26]} Bd4 {[%emt 0:01:28]} 33. Qd2 {[%emt 0:00:33]} Qc5 {[%emt 0:00:52]} 34. Nc2 {[%emt 0:00:28]} Bf6 {[%emt 0:00:57]} 35. Qc1 {[%emt 0:00:34]} Be2 {[%emt 0:03:11]} 36. Re3 {[%emt 0:00:32]} Bg4 {[%emt 0:00:13]} 37. Rhg3 {[%emt 0:00:29]} Bxh4 {[%emt 0:00:23]} 38. Nxa3 {[%emt 0:00:25]} Bxg3 {[%emt 0:00:38]} 39. Rxg3 {[%emt 0:00:01]} Qf2 {[%emt 0:00:36]} 40. Rd3 {[%emt 0:00:55]} Qxg2 {[%emt 0:00:32]} 41. Nab5 {[%emt 0:30:39]} Qxe4 {[%emt 0:04:01]} 42. Qc2 {[%emt 0:00:00]} Qe1+ {[%emt 0:05:40]} 43. Kb2 {[%emt 0:00:00]} Bf5 {[%emt 0:01:55]} 44. Qd1 {[%emt 0:00:00]} Qxd1 {[%emt 0:00:59]} 45. Rxd1 {[%emt 0:00:00]} Rc6 {[%emt 0:02:22]} 46. a4 {[%emt 0:00:00]} h4 {[%emt 0:00:34]} 47. a5 {[%emt 0:00:00]} h3 {[%emt 0:00:20]} 48. b4 {[%emt 0:00:00]} Bg4 {[%emt 0:02:16]} 49. Rh1 {[%emt 0:00:00]} Rb8 {[%emt 0:04:32]} 50. Kb3 {[%emt 0:00:00]} e5 {[%emt 0:00:08]} 51. Ka4 {[%emt 0:01:44]} Bd7 {[%emt 0:01:21]} 52. Nd5 {[%emt 0:01:47]} Ra6 {[%emt 0:00:50]} 53. Ndc3 {[%emt 0:01:25]} exf4 {[%emt 0:00:51]} 0-1

[Event "Serbian League Women 2024"]
[Site "Bajina Basta"]
[Date "2024.10.01"]
[Round "5.24"]
[White "Manakova, Maria"]
[Black "Nestorovic, Katarina"]
[Result "1-0"]
[ECO "B81"]
[WhiteElo "2185"]
[BlackElo "2038"]
[Annotator "RC"]
[PlyCount "123"]
[EventDate "2024.09.26"]
[EventType "team-tourn"]
[EventCountry "SRB"]
[SourceTitle "playchess.com"]
[Source "ChessBase"]
[SourceQuality "1"]
[TimeControl "40/5400+30:1800+30"]

1. e4 {[%emt 0:00:03]} c5 {[%emt 0:00:07]} 2. Nf3 {[%emt 0:00:03]} e6 {[%emt 0:00:08]} 3. d4 {[%emt 0:00:04]} cxd4 {[%emt 0:00:06]} 4. Nxd4 {[%emt 0:00:01]} Nf6 {[%emt 0:00:10]} 5. Nc3 {[%emt 0:00:04]} d6 {[%emt 0:00:06]} 6. g4 {[%emt 0:00:38]} h6 {[%emt 0:00:43]} 7. h3 {[%emt 0:00:24]} a6 {[%emt 0:00:38]} 8. Bg2 {[%emt 0:00:29]} Be7 {[%emt 0:00:19]} 9. Be3 {[%emt 0:00:15]} Nc6 {[%emt 0:00:20]} 10. Qd2 {[%emt 0:02:12]} Nxd4 {[%emt 0:00:59]} 11. Qxd4 {[%emt 0:08:54]} e5 {[%emt 0:00:51]} 12. Qd2 {[%emt 0:03:55]} b5 {[%emt 0:00:47]} 13. O-O-O {[%emt 0:00:35]} b4 {[%emt 0:00:36]} 14. Nd5 {[%emt 0:21:28]} Nxd5 {[%emt 0:00:42]} 15. exd5 {[%emt 0:01:36]} a5 {[%emt 0:00:47]} 16. Be4 {[%emt 0:04:42]} Bg5 {[%emt 0:09:22]} 17. Kb1 {[%emt 0:01:24]} Ba6 {[%emt 0:27:30]} 18. h4 {[%emt 0:03:46]} Bxe3 {[%emt 0:04:18]} 19. Qxe3 {[%emt 0:00:55]} Qf6 {[%emt 0:10:43]} 20. Rde1 {[%emt 0:18:57]} Qf4 {[%emt 0:17:29]} 21. Qxf4 {[%emt 0:02:36]} exf4 {[%emt 0:00:05]} 22. Bd3+ {[%emt 0:00:33]} Kd7 {[%emt 0:00:50]} 23. Bxa6 {[%emt 0:00:15]} Rxa6 {[%emt 0:00:04]} 24. Re4 {[%emt 0:00:03]} Re8 {[%emt 0:01:52]} 25. Rxf4 {[%emt 0:00:06]} f6 {[%emt 0:00:53]} 26. f3 {[%emt 0:09:05]} Raa8 {[%emt 0:09:27]} 27. Kc1 {[%emt 0:15:31]} Re2 {[%emt 0:00:25]} 28. Re4 {[%emt 0:01:29]} Re8 {[%emt 0:03:45]} 29. Rxe8 {[%emt 0:00:42]} Kxe8 {[%emt 0:00:05]} 30. Rd1 {[%emt 0:01:09]} g6 {[%emt 0:03:41]} 31. a3 {[%emt 0:00:06]} bxa3 {[%emt 0:01:34]} 32. bxa3 {[%emt 0:00:03]} h5 {[%emt 0:01:00]} 33. gxh5 {[%emt 0:00:39]} gxh5 {[%emt 0:00:05]} 34. Rd4 {[%emt 0:00:12]} Kf7 {[%emt 0:02:52]} 35. Kb2 {[%emt 0:02:36]} f5 {[%emt 0:00:29]} 36. Kb3 {[%emt 0:00:45]} Kf6 {[%emt 0:00:17]} 37. f4 {[%emt 0:01:28]} Rh2 {[%emt 0:01:41]} 38. Ka4 {[%emt 0:00:33]} Rh3 {[%emt 0:00:37]} 39. c4 {[%emt 0:00:11]} Ke7 {[%emt 0:01:48]} 40. Rd1 {[%emt 0:00:52]} Rc3 {[%emt 0:01:01]} 41. Rd4 {[%emt 0:30:43]} Kd7 {[%emt 0:30:31]} 42. Kxa5 {[%emt 0:00:00]} Rxa3+ {[%emt 0:00:00]} 43. Kb4 {[%emt 0:00:00]} Rh3 {[%emt 0:00:00]} 44. c5 {[%emt 0:00:00]} dxc5+ {[%emt 0:00:00]} 45. Kxc5 {[%emt 0:00:00]} Rxh4 {[%emt 0:00:00]} 46. Ra4 {[%emt 0:00:00]} Rg4 {[%emt 0:00:00]} 47. d6 {[%emt 0:00:00]} Rg1 {[%emt 0:00:00]} 48. Ra7+ {[%emt 0:00:00]} Kd8 {[%emt 0:00:00]} 49. Rh7 {[%emt 0:00:00]} Rf1 {[%emt 0:00:00]} 50. Kc6 {[%emt 0:00:00]} Rc1+ {[%emt 0:00:00]} 51. Kd5 {[%emt 0:00:00]} Re1 {[%emt 0:00:00]} 52. Rxh5 {[%emt 0:00:00]} Kd7 {[%emt 0:00:00]} 53. Rh7+ {[%emt 0:00:00]} Ke8 {[%emt 0:00:13]} 54. Rh6 {[%emt 0:00:00]} Kd7 {[%emt 0:02:16]} 55. Rf6 {[%emt 0:00:00]} Ra1 {[%emt 0:00:42]} 56. Rf7+ {[%emt 0:00:00]} Ke8 {[%emt 0:00:44]} 57. Rxf5 {[%emt 0:00:00]} Rd1+ {[%emt 0:00:04]} 58. Ke6 {[%emt 0:00:00]} Re1+ {[%emt 0:00:27]} 59. Re5 {[%emt 0:00:00]} Rh1 {[%emt 0:00:42]} 60. f5 {[%emt 0:00:00]} Rh6+ {[%emt 0:00:51]} 61. f6 {[%emt 0:00:00]} Kd8 {[%emt 0:01:02]} 62. Ra5 {[%emt 0:00:00]} 1-0